Cogmind - Beta 14 @@@ ROGUE MODE // 2024.11.12 @ 11:53:12 Player: Fangrelle Result: Destroyed by S-10 Pest with Light Assault Rifle Performance ------------- Evolutions (0) 0 Regions Visited (4) 800 Robots Destroyed (5) 25 Value Destroyed (42) 42 Prototype IDs (23) 460 Alien Tech Used (0) 0 Bonus (300) 300 TOTAL SCORE: 1627 Bonus ------- Aligned with FarCom 300 Cogmind --------- Core Integrity 0/250 Matter 295/300 Energy 89/100 System Corruption 0% Temperature Cool (0) Movement Core (50) Location -9/Mines Parts ------- > --- POWER (1) -------- (None) > --- PROPULSION (2) --- (None) > --- UTILITY (2) ------ (None) > --- WEAPON (2) ------- (None) > --- INVENTORY (5) ---- Large Storage Unit Large Matter Pod (150) Hacking Suite Longsword +1 Peak State ------------ > --- POWER ------------ Light Ion Engine > --- PROPULSION ------- (None) > --- UTILITY ---------- (None) > --- WEAPON ----------- Grenade Launcher Longsword +1 > --- INVENTORY -------- Nuclear Core Nuclear Core Large Storage Unit Hacking Suite [Rating: 11] Favorites ----------- Power Light Ion Engine Engine Light Ion Engine Propulsion Flight Unit Leg Aluminum Leg Flight Unit Flight Unit Utility Small Storage Unit Storage Small Storage Unit Processor Targeting Computer Weapon Small Laser Energy Gun Small Laser Ballistic Gun Assault Rifle Launcher Grenade Launcher Slashing Weapon Longsword +1 Build | -11 -10 -10 -10 -9 ------- Run | Yrd Mat Min Exi Min Slots Evolved . | . . . . . Power . | . . . . . Propulsion . | . . . . . Utility . | . . . . . Weapon . | . . . . . Parts Attached 10 | . 2 4 3 1 Power 1 | . . . 1 . Engine 1 | . . . 1 . Core . | . . . . . Reactor . | . . . . . Propulsion 2 | . 1 1 . . Treads . | . . . . . Leg . | . . . . . Wheel . | . . . . . Hover . | . . . . . Flight 2 | . 1 1 . . Utility 1 | . . 1 . . Device . | . . . . . Storage . | . . . . . Processor 1 | . . 1 . . Hackware . | . . . . . Protection . | . . . . . Artifact . | . . . . . Weapon 6 | . 1 2 2 1 Energy Gun . | . . . . . Energy Cannon . | . . . . . Ballistic Gun 1 | . 1 . . . Ballistic Cannon . | . . . . . Launcher 4 | . . 2 1 1 Special Weapon . | . . . . . Impact Weapon . | . . . . . Slashing Weapon 1 | . . . 1 . Piercing Weapon . | . . . . . Special Melee Weapon . | . . . . . Unidentified Prototypes . | . . . . . Parts Lost 3 | . . 2 . 1 Power . | . . . . . Propulsion 1 | . . 1 . . Utility 1 | . . 1 . . Weapon 1 | . . . . 1 Highest Loss Streak 1 | . . 1 . 1 To Critical Strikes . | . . . . . Average Slot Usage (%) 11 | . 57 10 17 . Engine 2 | . 8 . 12 . Leg 1 | . 15 . . . Flight 2 | . 6 9 . . Storage 1 | . 8 . . . Energy Gun 2 | . 17 . . . Peak Build Rating 11 | . 6 2 11 10 Average Rating 1 | . 4 . 3 1 On Entrance 4 | 6 6 1 . 11 Naked Turns 898 | . . 90 33 775 Heaviest Build 12 | 12 12 3 9 6 Greatest Support 20 | 20 20 4 3 3 Greatest Overweight (x) 2 | . . . 2 1 Average Overweight (x) . | . . . . . Largest Inventory Capacity 8 | . 8 5 5 5 Average Capacity 5 | . 6 5 5 5 Most Carried 8 | . 8 5 5 5 Average Carried 5 | . 6 4 4 4 Final Capacity 8 | 8 5 5 5 5 Final Carried 6 | 6 5 4 5 4 Class Distribution -------------------- 100% | Mutant Dominant Class ---------------- Mutant | -10/Materials Mutant | -10/Mines Mutant | -10/Exiles Mutant | -9/Mines Resources | -11 -10 -10 -10 -9 ----------- Run | Yrd Mat Min Exi Min Matter Collected 399 | 193 . 146 60 . Remotely . | . . . . . Salvage Created 28 | . . 28 . . Parts 10 | . . 10 . . Haulers Intercepted . | . . . . . Recyclers Shooed . | . . . . . Parts Field Recycled . | . . . . . Retrieved Matter . | . . . . . Parts Self-Destructed . | . . . . . Prevented . | . . . . . Kills | -11 -10 -10 -10 -9 ------- Run | Yrd Mat Min Exi Min Combat Hostiles Destroyed 3 | . . 3 . . AOE 3 | . . 3 . . Classes Destroyed 3 | . . 3 . . Builder 1 | . . 1 . . Tunneler 1 | . . 1 . . Swarmer 3 | . . 3 . . Best Kill Streak 4 | . . 4 . . Combat Bots Only 3 | . . 3 . . Max Kills in Single Turn 2 | . . 2 . . Gunslinging . | . . . . . Exploded 2 | . . 2 . . Melee . | . . . . . Uniques/NPCs Destroyed . | . . . . . Combat | -11 -10 -10 -10 -9 -------- Run | Yrd Mat Min Exi Min Hostile Shots Fired 51 | . . 31 . 20 Missed 21 | . . 13 . 8 Damage Taken 354 | . . 236 . 118 Core 251 | . . 176 . 75 Absorbed by Shields . | . . . . . Core Remaining (%) 100 | 100 . . . . Volleys Fired 10 | . 5 5 . . Largest 2 | . 2 1 . . Hottest 80 | . 80 30 . . Shots Fired 13 | . 8 5 . . Gun 8 | . 8 . . . Cannon . | . . . . . Launcher 5 | . . 5 . . Special . | . . . . . Kinetic 2 | . 2 . . . Thermal 6 | . 6 . . . Explosive 5 | . . 5 . . Electromagnetic . | . . . . . Robot Hit Streak 2 | . 2 . . . Robot Miss Streak 5 | . 3 5 . . Penetration Max . | . . . . . Secondary Targets . | . . . . . Shots Hit Robots 2 | . 2 . . . Core Hits 5 | . . 5 . . Critical Kills . | . . . . . Critical Parts Destroyed . | . . . . . Critical Strikes . | . . . . . Melee Attacks . | . . . . . Impact . | . . . . . Slashing . | . . . . . Piercing . | . . . . . Sneak Attacks . | . . . . . Combat Hostiles . | . . . . . Follow-up Attacks . | . . . . . Damage Inflicted 333 | . 21 312 . . Guns 21 | . 21 . . . Cannons . | . . . . . Explosions 312 | . . 312 . . Melee . | . . . . . Ramming . | . . . . . Kinetic . | . . . . . Thermal 21 | . 21 . . . Explosive 312 | . . 312 . . Electromagnetic . | . . . . . Impact . | . . . . . Slashing . | . . . . . Piercing . | . . . . . Highest Corruption . | . . . . . Average Corruption . | . . . . . Corruption Purged . | . . . . . Corruption Blocked . | . . . . . Overload Shots . | . . . . . Overflow Damage 8 | . . 8 . . Projectiles . | . . . . . Explosions 8 | . . 8 . . Melee . | . . . . . Knockbacks . | . . . . . Impact . | . . . . . Kinetic . | . . . . . Secondary . | . . . . . Self-Inflicted Damage 32 | . . 32 . . Shots 1 | . . 1 . . Rammed . | . . . . . Targets Rammed . | . . . . . Kicked . | . . . . . Crushed . | . . . . . Highest Temperature 54 | . 54 . . . Average Temperature 29 | . 29 . . . Received Heat Transfer 102 | . . 102 . . Siege Activations . | . . . . . Robots Corrupted . | . . . . . Combat Hostiles . | . . . . . Parts Fried . | . . . . . Impact Corruptions . | . . . . . Robots Melted . | . . . . . Combat Hostiles . | . . . . . Parts Melted . | . . . . . Heat Transferred 50 | . 50 . . . Parts Sabotaged . | . . . . . Parts Stolen . | . . . . . Parts Stripped . | . . . . . Power Chain Reactions . | . . . . . Alert | -11 -10 -10 -10 -9 ------- Run | Yrd Mat Min Exi Min Peak Influence 173 | . 88 173 . 90 Initial 34 | . . 34 . . Average 56 | . 47 99 . 42 Maximum Alert Level . | . . . . . Low Security (%) 100 | . 100 100 . 100 Level 1 . | . . . . . Level 2 . | . . . . . Level 3 . | . . . . . Level 4 . | . . . . . Level 5 . | . . . . . High Security . | . . . . . Max Security . | . . . . . Squads Dispatched 2 | . 2 . . . Investigation 1 | . 1 . . . Extermination . | . . . . . Reinforcement 1 | . 1 . . . Assault . | . . . . . Garrison . | . . . . . Intercept . | . . . . . Searches Triggered . | . . . . . Construction Impeded . | . . . . . Haulers Reinforced . | . . . . . Active Scanning Responses . | . . . . . Cargo Convoy Interrupts . | . . . . . Stealth | -11 -10 -10 -10 -9 --------- Run | Yrd Mat Min Exi Min Distress Signals 1 | . 1 . . . Communications Jammed . | . . . . . Distress Signals . | . . . . . Times Spotted 23 | . 6 7 . 10 Peak Tracking Total 5 | . 5 5 . 5 Tactical Retreats 5 | . 1 1 . 3 Traps | -11 -10 -10 -10 -9 ------- Run | Yrd Mat Min Exi Min Traps Triggered . | . . . . . Indirectly . | . . . . . Trap Hack Attempts . | . . . . . Triggered . | . . . . . Disarmed . | . . . . . Reprogrammed . | . . . . . Reused . | . . . . . Traps Extracted . | . . . . . Installed . | . . . . . Triggered . | . . . . . Machines | -11 -10 -10 -10 -9 ---------- Run | Yrd Mat Min Exi Min Machines Disabled . | . . . . . Max in Single Turn . | . . . . . Machines Repaired . | . . . . . Machines Dismantled . | . . . . . Machines Sabotaged . | . . . . . Overloaded Fab Kills . | . . . . . Hacking | -11 -10 -10 -10 -9 --------- Run | Yrd Mat Min Exi Min Machines Accessed 5 | . 3 . 2 . Terminals 2 | . 2 . . . Fabricators . | . . . . . Repair Stations . | . . . . . Recycling Units 1 | . 1 . . . Scanalyzers . | . . . . . Garrison Access . | . . . . . Total Hacks 14 | . 9 . 5 . Successful 10 | . 5 . 5 . Failed 4 | . 4 . . . Catastrophic . | . . . . . Database Lockouts . | . . . . . Manual 9 | . 8 . 1 . Terminals 7 | . 7 . . . Fabricators . | . . . . . Repair Stations . | . . . . . Recycling Units 2 | . 2 . . . Scanalyzers . | . . . . . Garrison Access . | . . . . . Terminal Hacks 6 | . 1 . 5 . Record 4 | . . . 4 . Branch Access Points 1 | . 1 . . . Derelict Proto ID Bank 1 | . . . 1 . Fabricator Hacks . | . . . . . Repair Station Hacks . | . . . . . Recycling Unit Hacks 1 | . 1 . . . Report Inventory 1 | . 1 . . . Scanalyzer . | . . . . . Garrison Access Hacks . | . . . . . Unauthorized Hacks 3 | . 3 . . . Terminals 2 | . 2 . . . Assimilate 1 | . 1 . . . Botnet 1 | . 1 . . . Fabricators . | . . . . . Repair Stations . | . . . . . Recycling Units 1 | . 1 . . . Tunnel 1 | . 1 . . . Scanalyzers . | . . . . . Garrison Access . | . . . . . Data Cores Recovered . | . . . . . Used . | . . . . . Hacking Detections 2 | . 2 . . . Full Trace Events . | . . . . . Feedback Events . | . . . . . Feedback Blocked . | . . . . . Robot Schematics Acquired . | . . . . . Robots Built . | . . . . . Authchips . | . . . . . Time . | . . . . . Total Robot Build Rating . | . . . . . Part Schematics Acquired . | . . . . . Parts Built . | . . . . . Authchips . | . . . . . Time . | . . . . . Total Part Build Rating . | . . . . . Parts Repaired . | . . . . . Time . | . . . . . Parts Recycled . | . . . . . Recycled Matter . | . . . . . Retrieved Matter . | . . . . . Retrieved Components . | . . . . . Parts Scanalyzed . | . . . . . Part Schematics Acquired . | . . . . . Parts Damaged . | . . . . . Bothacking | -11 -10 -10 -10 -9 ------------ Run | Yrd Mat Min Exi Min Used RIF Installer . | . . . . . Robots Hacked . | . . . . . Non-combat . | . . . . . Combat . | . . . . . Robot Hacks Applied . | . . . . . Relay Couplers Released . | . . . . . Fabnet Peak Effective % . | . . . . . Robots Rewired . | . . . . . Allies Hacked . | . . . . . Hacks Repelled . | . . . . . Allies | -11 -10 -10 -10 -9 -------- Run | Yrd Mat Min Exi Min Total Allies 1 | . 1 . . . Largest Group 1 | . 1 1 . . Highest-Rated Group 10 | . 10 10 . . Highest-Rated Ally 10 | . 10 10 . . Total Orders . | . . . . . Ally Attacks . | . . . . . Total Damage . | . . . . . Kills . | . . . . . Allies Corrupted . | . . . . . Allies Melted . | . . . . . Intel | -11 -10 -10 -10 -9 ------- Run | Yrd Mat Min Exi Min Robot Analysis Total . | . . . . . Derelict Logs Recovered 3 | . . 1 . 2 Drone Launches . | . . . . . Drone Recoveries . | . . . . . Exploration | -11 -10 -10 -10 -9 ------------- Run | Yrd Mat Min Exi Min Turns Passed 1483 | . 182 298 218 785 Spaces Moved 1578 | 1 231 604 360 382 Core 879 | . . 137 360 382 Treads . | . . . . . Legs 76 | 1 75 . . . Wheels . | . . . . . Hover . | . . . . . Flight 623 | . 156 467 . . Fastest Speed 40 | 120 40 40 50 50 Average Speed 51 | 120 65 42 58 50 Slowest Speed 150 | 120 120 50 150 100 Overloaded Moves . | . . . . . Propulsion Burnouts . | . . . . . Robots Hopped 1 | . . 1 . . Cave-ins Triggered . | . . . . . Exploration Rate (%) 47 | 2 48 81 72 36 Regions Visited 4 Branch Regions 3 Pre-discovered Areas 2 | . 1 . 1 . Known Exits Taken 1 | . 1 . . . Unknown Exits Taken 3 | 1 . 1 1 . Scrap Searched 3 | . . 2 . 1 Spaces Dug 10 | . . 10 . . Terrain Destroyed 35 | . . 35 . . Melee . | . . . . . Projectile . | . . . . . AOE 35 | . . 35 . . Terrain Rammed . | . . . . . Walls Destroyed . | . . . . . Machines Disabled . | . . . . . Actions | -11 -10 -10 -10 -9 --------- Run | Yrd Mat Min Exi Min Total 2247 | . 256 642 371 978 Wait 615 | . 4 21 . 590 Move 1572 | . 230 601 359 382 Hop 1 | . . 1 . . Pick Up 13 | . 4 3 6 . Fast Attach 3 | . . 2 1 . Attach 6 | . 1 2 2 1 Detach 5 | . 1 2 . 2 Swap 1 | . 1 . . . Drop 21 | . 10 5 3 3 Fire 10 | . 5 5 . . Melee . | . . . . . Ram . | . . . . . Kick . | . . . . . Crush . | . . . . . Escape Stasis . | . . . . . Rewire . | . . . . . Trap . | . . . . . Miscellaneous . | . . . . . Route ------- -11/Scrapyard -10/Materials -10/Mines (discovered 4 exits: [*Mat x2] / *Exi / [*Sub]) -10/Exiles (discovered 2 exits: [*Min x2]) -9/Mines History --------- Turn | Location | Event 1 | -11/Scrapyard | Discovered new exit (range 0) 1 | -11/Scrapyard | Entered Materials 144 | -10/Materials | Discovered new exit (range 9) 158 | -10/Materials | Identified exit to Mines 183 | -10/Materials | Entered Mines 183 | -10/Mines | Accompanied by 1 ally 292 | -10/Mines | Assembled infested the area 304 | -10/Mines | Discovered new exit (range 11) 327 | -10/Mines | Build established: Mutant 373 | -10/Mines | Discovered new exit (range 8) 376 | -10/Mines | Discovered new exit (range 13) 390 | -10/Mines | Core integrity fell below 50% 433 | -10/Mines | Met 8R-AWN 436 | -10/Mines | A weapon hastily lodged in a ceiling crevice suddenly fell to the ground 455 | -10/Mines | Discovered new exit (range 5) 481 | -10/Mines | Entered Exiles 499 | -10/Exiles | Discovered new exit (range 14) 518 | -10/Exiles | Welcomed by 8R-AWN 525 | -10/Exiles | Met EX-HEX 542 | -10/Exiles | Met EX-BIN 548 | -10/Exiles | Aligned with FarCom system 548 | -10/Exiles | Given EX-Vault access code 560 | -10/Exiles | Opened EX-Vault 562 | -10/Exiles | Found Longsword +1 574 | -10/Exiles | Warned to stay clear of 0b10 Research branches 587 | -10/Exiles | Met EX-DEC 590 | -10/Exiles | Learned location of Zion (-7) 687 | -10/Exiles | Discovered new exit (range 10) 699 | -10/Exiles | Left Exiles lab with Longsword +1 699 | -10/Exiles | Entered Mines 711 | -9/Mines | Core integrity fell below 20% 727 | -9/Mines | Met a Derelict bent on vengeance 741 | -9/Mines | Learned 2 Materials zone layouts 1484 | -9/Mines | Destroyed by S-10 Pest with Light Assault Rifle Last Messages --------------- GOAL=ESCAPE 00699_ Receiving FarCom transmissions... 00699_ Dropped Rigged Nuclear Core. 00700_ K-01 Serf collects debris. 00702_ Dropped Lgt. Ion Engine. 00704_ Dropped Rigged Nuclear Core. 00705_ Rigged Nuclear Core explodes. 00705_ S-10 Pest destroyed. 00705_ K-01 Serf collects debris. 00707_ C-30 ARC bursts open, deploying its payload. 00707_ B-36 Bruiser unfolds itself. 00707_ G-34 Mercenary unfolds itself. 00741_ Acquired derelict log, extracted data. Data stored: Materials zone layouts (x2). 00745_ Acquired derelict log, extracted data. Data stored: Lower Caves entrances (x1). 00802_ Searching scrap... 00802_ Found Mace. 00802_ Found 67 Matter. 01482_ Grenade Launcher destroyed. Map ----- +----------------------------------------------------+ | ?????????????????????????????????????????????????? | | ?????????????????????????????????????????????????? | | ?????????????????????????????????????????????????? | | ?####????????????????????????????????????????????? | | ## #####????????????????????????????????????????? | | # ## ##???????????????????????????????????????? | | #???????????????????????????????????????? | | ##??????????????????????????????????????? | | ##?????????????????????????????????????? | | #### ##???????????? ???????????????????????? | | ##??## ##??????????? ???????????????????????? | | #????# ###????????? ##?????????????????????? | | #????# ##???????? r#####?????????????????? | | #????# ##??????? ??????????????????? | | #????## ##?????? ???????????????????? | | #?????## ###????% #???????????????????? | | #??????## ##?## s #???????????????????? | | #???????## #?#ss #???????????????????? | | #????????### #?# #???????????????????? | | #??????????# ## ### #???????????????????? | | #??????????# ### ## #????????????????????? | | #??????????# #?## #?????????????????????? | | ###????????# #?## ##?????????????????????? | | #????????# #?# #??????????????????????? | | ##???????# #?# #??????????????????????? | | # ##??????# #?## ### @#??????????????????????? | | # ##?????# #??# ##?# #??????????????????????? | | ##????# #??# #??# #??????????????????????? | | """ #????# #??# #??# #??????????????????????? | | """ ##???# ####b #??# #??????????????????????? | | """ ##??# #??# #??????????????????????? | | #??###### #### #??????????????????????? | | ### #????# g ## #??????????????????????? | | ##??### #????# % #??????????????????????? | | ##??????##????# #####??????????????????????? | | #?????????????# ### ???????????????????????? | | #?????????????# #??#???????????????????????? | | #?????????????# #??????????????????????????? | | ??????????????# #??????????????????????????? | | ??????????????#########??????????????????????????? | | ?????????????????????????????????????????????????? | | | | | | | | | | | | | | | | | | | +----------------------------------------------------+ Best States ------------- Heat Dissipation 25 Energy Generation 10 Energy Capacity 250 Matter Stores 300 Matter Capacity 300 Sight Range 16 Terrain Scan Density 10 Evasion (%) 62 Targeting Accuracy 5 Item Schematics ----------------- None Robot Schematics ------------------ None Fabricated ------------ Nothing Alien Tech Used ----------------- None Achievements -------------- None Challenges ------------ None Game ------ Seed TechPitchforkBallwheel Manual? 0 Play Time 00:13:57 Cumulative 60.0 hours Start 2024.11.12 @ 11:39:49 End 2024.11.12 @ 11:53:12 Sessions 1 Manual Loads 0 Difficulty Rogue Special Mode None Game No. 106 Rogue 106 Adventurer 0 Explorer 0 Win Type - Total 0 Types 0/0/0/0/0/0/0/0/0 Lore% 39 Gallery% 34 Achievement% 34 Wizard Run 0 Options --------- Layout 0 ASCII 0 Keyboard 0 Movement Mouse Keybinds 0 Fullscreen 1 Font 24/Smallcaps Map View 183x50 Zoom Use 73% Tactical HUD 1 Map Filters NONE Filters NONE Steam 1 RUN: 6c0276b9-6eb6-49f5-932c-6251ff16fcba